bitfinex/quotes_ETHUSD_20250129
["timestamp","ask_amount","ask_price","bid_price","bid_amount"]
[1738153097271,4.82390469,3136.9,3136.8,0.273]
[1738153097589,4.82390469,3136.9,3136.8,0.35492657]
[1738153097965,3.83487262,3137.0,3136.8,0.35492657]
[1738153098865,3.18786,3136.9,3136.8,0.35492657]
[1738153100493,0.64711262,3137.0,3136.8,0.35492657]
[1738153100679,0.64711262,3137.0,3136.9,0.55]
[1738153100883,0.64711262,3137.0,3136.8,0.35492657]
[1738153101082,0.68142275,3137.0,3136.9,0.08183316]
[1738153101383,0.64711262,3137.0,3136.9,0.08183316]
[1738153103669,3.83486262,3137.0,3136.9,0.08183316]
[1738153104004,5.3210409,3137.0,3136.9,0.08183316]
[1738153104314,3.83486262,3137.0,3136.9,0.08183316]
[1738153105614,0.64711262,3137.0,3136.9,0.08183316]
[1738153105763,0.64711262,3137.0,3136.8,0.273]
[1738153106084,0.64711262,3137.0,3136.9,0.08174368]
[1738153107521,3.86917275,3137.0,3136.9,0.08174368]
[1738153107680,5.37015103,3137.0,3136.9,0.35474368]
[1738153107882,5.37015103,3137.0,3136.9,0.08174368]
[1738153108123,3.18786,3136.9,3136.7,0.273]
[1738153108328,3.22227013,3136.8,3136.7,0.273]
[1738153108633,3.18796,3136.8,3136.7,0.273]
[1738153108833,3.18786,3136.9,3136.7,0.273]
[1738153111756,0.64711262,3137.0,3136.7,0.273]
[1738153112972,0.64711262,3137.0,3136.7,3.46106]
[1738153113257,0.64711262,3137.0,3136.7,0.273]
[1738153114879,0.64711262,3137.0,3136.8,0.55]
[1738153115227,0.64711262,3137.0,3136.7,0.273]
[1738153120273,0.64711262,3137.0,3136.8,1.3145]
[1738153121024,0.68142275,3137.0,3136.8,1.3145]
[1738153121227,3.83491262,3137.0,3136.8,0.5575]
[1738153121634,3.86922275,3137.0,3136.8,0.5575]
[1738153122763,3.83491262,3137.0,3136.9,0.08170155]
[1738153124672,0.64711262,3137.0,3136.9,0.08170155]
[1738153125171,0.68142275,3137.0,3136.9,0.08170155]
[1738153125535,3.86917275,3137.0,3136.9,0.08170155]
[1738153125737,5.32986003,3137.0,3136.9,0.08170155]
[1738153125970,5.32986003,3137.0,3136.1,6.37718]
[1738153125971,3.18796,3136.8,3136.7,0.273]
[1738153126169,3.18819,3136.6,3136.2,3.5575]
[1738153126364,3.18819,3136.6,3136.3,0.273]
[1738153127179,3.83489262,3137.0,3136.6,0.5575]
[1738153127942,0.03431013,3136.9,3136.6,0.5575]
[1738153128347,3.83489262,3137.0,3136.6,0.5575]
[1738153128677,0.64711262,3137.0,3136.6,3.74566]
[1738153128881,0.64711262,3137.0,3136.8,0.5575]
[1738153129176,3.18751,3137.3,3136.8,3.74544]
[1738153129340,3.18742,3137.4,3137.0,1.3602]
[1738153129743,3.18745,3137.3,3137.0,1.3602]
[1738153130944,0.63624591,3137.1,3137.0,1.3602]
[1738153134718,5.59810469,3137.5,3137.0,1.3602]
[1738153134719,4.82390469,3137.5,3137.0,1.815013]
[1738153134900,5.46959064,3137.5,3137.2,0.5575]
[1738153135729,4.82390469,3137.5,3137.2,0.5575]
[1738153136111,8.01117469,3137.5,3137.1,0.5575]
[1738153136510,4.82390469,3137.5,3137.1,0.5575]
[1738153136730,4.82390469,3137.5,3137.1,1.37973381]
[1738153137737,8.01116469,3137.5,3137.2,0.08161082]
[1738153138423,4.82390469,3137.5,3137.2,0.08161082]
[1738153139651,3.81628599,3137.6,3137.2,0.08161082]
[1738153139857,7.00349599,3137.6,3137.2,0.08161082]
[1738153140551,3.81627599,3137.6,3137.2,0.08161082]
[1738153140855,7.00350599,3137.6,3137.2,0.08161082]
[1738153141954,0.62906599,3137.6,3137.5,0.5575]
[1738153142314,0.62906599,3137.6,3137.5,0.6385202]
[1738153145257,0.62906599,3137.6,3137.5,0.936581]
[1738153148964,0.62906599,3137.6,3137.5,4.123831]
[1738153149164,0.62906599,3137.6,3137.5,5.1302241]
[1738153149567,0.755,3138.2,3137.5,5.1302241]
[1738153149741,0.755,3138.2,3137.8,3.18689]
[1738153150071,0.63981941,3138.1,3137.9,0.08070461]
[1738153150366,0.63981941,3138.1,3137.7,0.5575]
[1738153150586,0.63981941,3138.1,3138.0,0.08066912]
[1738153150732,0.63981941,3138.1,3137.7,0.5575]
[1738153150934,0.63981941,3138.1,3138.0,0.08066912]
[1738153151153,0.63981941,3138.1,3137.7,0.5575]
[1738153151366,3.82645941,3138.1,3138.0,0.08066912]
[1738153151572,3.18692,3137.9,3137.7,0.5575]
[1738153152076,3.18692,3137.9,3137.8,0.2980608]
[1738153152441,7.01319941,3138.1,3137.8,0.2980608]
[1738153152648,3.82645941,3138.1,3137.8,0.37841162]
[1738153152848,3.1868,3138.0,3137.8,0.37841162]
[1738153153054,3.18684,3137.9,3137.8,0.37841162]
[1738153153544,4.69296994,3137.9,3137.8,0.37841162]
[1738153153757,4.69296994,3137.9,3137.8,0.35335082]
[1738153153935,4.72728007,3137.9,3137.8,0.273]
[1738153154875,3.18731,3137.5,3137.1,0.8172]
[1738153155074,0.03431013,3137.4,3137.2,0.273]
[1738153155278,0.8048,3137.5,3137.2,0.273]
[1738153155643,0.83911013,3137.5,3137.2,0.273]
[1738153157402,0.83911013,3137.5,3137.3,0.29799656]
[1738153158904,0.83911013,3137.5,3137.4,0.29799656]
[1738153160193,4.65945475,3137.5,3137.4,0.29799656]
[1738153160399,1.47220475,3137.5,3137.4,0.29799656]
[1738153160803,1.47220475,3137.5,3137.2,0.273]
[1738153161596,0.63309462,3137.5,3137.2,0.273]
[1738153161895,0.63309462,3137.5,3137.3,0.804]
[1738153162131,0.63309462,3137.5,3137.2,3.4605]
[1738153162132,3.85470475,3137.5,3137.2,0.273]
[1738153162328,4.55889223,3137.5,3137.3,0.29825776]
[1738153164035,4.55889223,3137.5,3137.4,0.272]
[1738153164209,4.55889223,3137.5,3137.4,0.57025776]
[1738153164410,10.17239692,3137.5,3137.4,0.29825776]
[1738153164614,10.13808679,3137.5,3137.4,0.29825776]
[1738153165198,3.18755,3137.2,3137.1,0.272]
[1738153165467,3.93893013,3137.2,3137.1,0.272]
[1738153165738,3.93893013,3137.2,3137.1,0.35299386]
[1738153165906,3.93893013,3137.2,3137.1,0.272]
[1738153166110,3.18787,3136.9,3136.5,0.8007]
[1738153166326,3.22218013,3136.9,3136.6,0.272]
[1738153166699,3.98306,3137.0,3136.6,0.272]
[1738153166932,3.18776,3137.0,3136.6,0.57029879]
[1738153167608,0.03431013,3137.0,3136.6,0.57029879]
[1738153167814,3.18786,3136.9,3136.7,0.08113592]
[1738153168119,11.19931469,3137.1,3136.7,0.08113592]
[1738153168326,3.18777,3137.0,3136.7,0.08113592]
[1738153168522,3.18777,3137.0,3136.8,0.29829879]
[1738153168725,4.82390469,3137.1,3136.8,0.29829879]
[1738153168899,4.82390469,3137.1,3136.9,0.08106489]
[1738153169307,4.82390469,3137.4,3136.9,0.08106489]
[1738153169645,4.82390469,3137.4,3136.9,0.86416489]
[1738153169852,4.82390469,3137.4,3136.9,4.05200489]
[1738153170071,3.18746,3137.3,3136.9,4.05200489]
[1738153170277,4.82390469,3137.4,3137.0,0.5575]
[1738153170476,4.82390469,3137.4,3137.0,3.82626937]
[1738153170815,4.82390469,3137.4,3137.2,0.55]
[1738153171044,0.63309462,3137.5,3137.3,0.7633]
[1738153171213,0.63309462,3137.5,3137.3,0.84442278]
[1738153173364,0.8096,3138.0,3137.4,0.5575]
[1738153173525,3.18683,3138.0,3137.6,0.5575]
[1738153174057,0.6499445,3137.9,3137.7,0.8654966]
[1738153179064,0.6499445,3137.9,3137.8,0.0075]
[1738153179271,0.6499445,3137.9,3137.8,0.08806124]
[1738153186654,0.6499445,3137.9,3137.8,0.08056124]
[1738153187003,4.64675463,3137.9,3137.5,3.0]
[1738153187214,4.64675463,3137.9,3137.8,0.34963591]
[1738153187356,4.64675463,3137.9,3137.8,0.272]
[1738153187556,1.4255445,3137.9,3137.8,0.34963591]
[1738153187854,0.6499445,3137.9,3137.8,0.34963591]
[1738153196214,0.68425463,3137.9,3137.8,0.34963591]
[1738153196514,0.6499445,3137.9,3137.8,0.34963591]
[1738153198507,0.68425463,3137.9,3137.8,0.34963591]
[1738153198690,0.6499445,3137.9,3137.8,0.34963591]
[1738153199088,0.68425463,3137.9,3137.8,0.34963591]
[1738153199268,3.87109463,3137.9,3137.8,0.34963591]
[1738153199468,4.65784909,3137.9,3137.8,0.07763591]
[1738153199800,3.18694,3137.8,3137.7,0.272]
[1738153200176,3.22125013,3137.8,3137.7,0.34978709]
[1738153200792,4.00795013,3137.8,3137.7,0.07778709]
[1738153201195,3.18704,3137.7,3137.6,0.272]
[1738153201401,4.36889291,3137.7,3137.6,0.272]
[1738153201599,4.40320304,3137.7,3137.6,0.34982259]
[1738153201972,4.36889291,3137.7,3137.6,0.34982259]
[1738153206212,3.18704,3137.7,3137.6,0.34982259]
[1738153206714,3.22135013,3137.7,3137.6,0.34982259]
[1738153206884,3.22135013,3137.7,3137.6,0.272]
[1738153207215,3.22135013,3137.7,3137.6,0.34982259]
[1738153209250,4.01285013,3137.7,3137.6,0.34982259]
[1738153209566,10.1827942,3137.7,3137.6,0.07782259]
[1738153209768,0.7673,3137.6,3137.1,0.272]
[1738153209937,3.18755,3137.2,3137.1,0.272]
[1738153210440,4.02866013,3137.2,3137.1,0.272]
[1738153211376,3.18797,3136.8,3136.3,0.8087]
[1738153211582,3.18817,3136.6,3136.4,0.272]
[1738153212982,0.03431013,3136.7,3136.5,0.07838155]
[1738153213351,3.22239013,3136.7,3136.5,0.07838155]
[1738153213778,3.18808,3136.7,3136.5,0.07838155]
[1738153214977,3.18792,3136.9,3136.5,0.07838155]
[1738153215553,3.18796,3136.8,3136.5,0.07838155]
[1738153215868,3.18809,3136.7,3136.5,0.07838155]
[1738153216282,0.63847428,3136.6,3136.5,0.07838155]
[1738153216463,0.63847428,3136.6,3136.5,0.35038155]
[1738153216464,3.82663428,3136.6,3136.5,0.35038155]
[1738153216666,3.82663428,3136.6,3136.5,0.272]
[1738153217059,0.63847428,3136.6,3136.5,0.35038155]
[1738153218100,0.63847428,3136.6,3136.5,0.07838155]
[1738153218264,0.63847428,3136.6,3136.5,1.18278155]
[1738153218462,0.63847428,3136.6,3136.5,1.1044]
[1738153219561,6.37586,3136.9,3136.5,1.1044]
[1738153219760,3.18792,3136.9,3136.5,1.1044]
[1738153219960,3.18804,3136.8,3136.5,1.1044]
[1738153220362,3.18772,3137.1,3136.6,0.7932]
[1738153220562,0.62699323,3136.9,3136.6,3.98136]
[1738153222592,0.62699323,3136.9,3136.6,0.7932]
[1738153224503,0.62699323,3136.9,3136.6,3.98135]
[1738153224794,0.62699323,3136.9,3136.7,0.781]
[1738153224995,0.62699323,3136.9,3136.8,5.599875]
[1738153226106,0.62699323,3136.9,3136.7,0.766]
[1738153226463,0.62699323,3136.9,3136.7,3.95405]
[1738153229905,0.62699323,3136.9,3136.7,0.766]
[1738153230209,0.62699323,3136.9,3136.7,0.0075]
[1738153231404,0.62699323,3136.9,3136.7,3.19555]
[1738153232400,0.62699323,3136.9,3136.8,0.7538]
[1738153234620,0.62699323,3136.9,3136.8,3.94926]
[1738153234921,3.18725,3137.5,3136.9,0.0075]
[1738153235286,0.64831113,3137.4,3137.1,0.8156]
[1738153235513,0.64831113,3137.4,3137.2,3.1875]
[1738153235684,3.18694,3137.8,3137.3,3.18745]
[1738153235886,6.37395,3137.8,3137.3,3.18745]
[1738153236086,3.18694,3137.8,3137.3,3.18745]
[1738153236425,3.18706,3137.7,3137.2,3.19503]
[1738153237469,8.76621469,3137.9,3137.4,0.0075]
[1738153237630,4.82390469,3137.9,3137.5,0.7586]
[1738153237792,3.18681,3138.0,3137.5,0.7586]
[1738153237987,3.18681,3138.0,3137.4,0.0075]
[1738153237988,3.187,3137.8,3137.4,0.0075]
[1738153238194,3.18707,3137.7,3137.4,0.0075]
[1738153238593,0.7933,3137.8,3137.4,0.0075]
[1738153239837,0.62299096,3137.7,3137.4,0.0075]
[1738153241740,0.62299096,3137.7,3137.4,3.19482]
[1738153242945,0.62299096,3137.7,3137.4,0.0075]
[1738153246539,3.81004096,3137.7,3137.4,0.0075]
[1738153247045,3.81004096,3137.7,3137.5,0.271]
[1738153251750,3.18714,3137.6,3137.5,0.271]
[1738153251916,0.62299096,3137.7,3137.5,0.271]
[1738153252115,3.81003096,3137.7,3137.5,0.271]
[1738153258348,0.62299096,3137.7,3137.5,0.271]
[1738153259039,0.03431013,3137.6,3137.5,0.271]
[1738153259215,3.22145013,3137.6,3137.5,0.271]
[1738153259718,3.98815013,3137.6,3137.5,0.271]
[1738153259914,3.18737,3137.4,3137.1,0.8227]
[1738153260152,3.18737,3137.4,3137.2,0.271]
[1738153260348,3.95385,3137.6,3137.2,0.271]
[1738153260724,3.18722,3137.6,3137.2,0.271]
[1738153261054,0.62299096,3137.7,3137.3,0.0075]
[1738153261356,3.18701,3137.8,3137.4,0.7864]
[1738153261554,3.81103355,3137.8,3137.4,0.7864]
[1738153265448,3.18705,3137.7,3137.3,0.0075]
[1738153265650,4.01986013,3137.7,3137.3,0.0075]
[1738153265846,0.83281013,3137.7,3137.0,0.8294]
[1738153266077,3.18756,3137.2,3136.8,0.8294]
[1738153266276,3.18793,3136.9,3136.5,0.8294]
[1738153266444,3.9861,3137.2,3136.6,0.271]
[1738153266656,0.7985,3137.2,3136.6,3.45911]
[1738153266862,3.18766,3137.1,3136.6,3.45911]
[1738153267522,3.18766,3137.1,3136.7,0.428851]
[1738153268482,3.18745,3137.3,3136.7,0.428851]
[1738153268784,3.18756,3137.2,3136.7,3.18804]
[1738153269184,3.1874,3137.4,3137.0,0.773]
[1738153269386,8.01121469,3137.5,3137.1,0.0075]
[1738153270145,0.64718149,3137.3,3137.2,3.19505]
[1738153271064,0.64718149,3137.3,3137.2,0.0075]
[1738153271268,0.64718149,3137.3,3137.2,0.40750552]
[1738153275198,0.64718149,3137.3,3137.2,0.2775]
[1738153275999,3.18715,3137.6,3137.2,0.2775]
[1738153277665,0.64243966,3137.4,3137.2,0.2775]
[1738153278606,0.64243966,3137.4,3137.3,0.11868031]
[1738153279592,0.64243966,3137.4,3137.3,0.89468031]
[1738153279797,0.64243966,3137.4,3137.3,1.64866034]
[1738153281117,3.187,3137.8,3137.3,4.83611034]
[1738153281322,5.65110469,3137.9,3137.4,0.0075]
[1738153281528,3.18687,3137.9,3137.4,3.19484]
[1738153281821,3.18687,3137.9,3137.4,0.0075]
[1738153281822,3.18701,3137.8,3137.4,0.0075]
[1738153282113,3.18704,3137.8,3137.4,0.0075]
[1738153282320,3.81442945,3137.8,3137.4,0.0075]
[1738153285328,0.62738945,3137.8,3137.4,0.0075]
[1738153285529,3.18706,3137.7,3137.4,0.0075]
[1738153286024,3.22137013,3137.7,3137.5,0.27]
[1738153286316,3.18714,3137.6,3137.5,0.27]
[1738153287104,3.18714,3137.6,3137.3,0.11868031]
[1738153287313,3.18714,3137.6,3137.5,0.27]
[1738153290414,4.69941296,3137.7,3137.5,0.27]
[1738153290415,3.18705,3137.7,3137.5,0.27]
[1738153290800,3.18714,3137.6,3137.5,0.27]
[1738153291006,0.62738945,3137.8,3137.5,0.27]
[1738153291387,3.18706,3137.7,3137.5,0.27]
[1738153291592,3.22137013,3137.7,3137.5,0.27]
[1738153293733,0.62738945,3137.8,3137.5,0.27]
[1738153294289,3.81432945,3137.8,3137.5,0.27]
[1738153295541,0.62738945,3137.8,3137.5,1.036]
[1738153297409,3.81438945,3137.8,3137.5,1.036]
[1738153297803,0.61894384,3137.8,3137.5,1.036]
[1738153299322,0.61894384,3137.8,3137.5,1.78894603]
[1738153299529,3.80589384,3137.8,3137.5,1.78894603]
[1738153299730,0.61894384,3137.8,3137.5,1.78894603]
[1738153301141,3.80588384,3137.8,3137.5,1.78894603]
[1738153301339,3.80588384,3137.8,3137.5,0.27]
[1738153302048,0.61894384,3137.8,3137.5,0.27]
[1738153306151,8.01061469,3138.1,3137.5,0.27]
[1738153306444,0.63654218,3137.9,3137.6,0.7843]
[1738153307223,3.82340218,3137.9,3137.6,0.7843]
[1738153309219,3.18695,3137.8,3137.6,0.7843]
[1738153309462,4.03576013,3137.8,3137.5,0.27]
[1738153310061,4.00145,3137.8,3137.5,0.27]
[1738153310233,4.03576013,3137.8,3137.5,0.27]
[1738153310435,3.18695,3137.8,3137.5,0.27]
[1738153311464,3.82340218,3137.9,3137.6,0.818]
[1738153311819,3.18658,3138.2,3137.7,3.19454]
[1738153312228,3.18658,3138.2,3137.7,3.22640727]
[1738153312429,3.18658,3138.2,3137.7,3.82598073]
[1738153312633,3.83786905,3138.1,3137.7,0.63894073]
[1738153312838,3.18688,3137.9,3137.6,0.818]
[1738153321340,7.83098905,3138.1,3137.6,0.818]
[1738153321536,3.18676,3138.0,3137.6,0.818]
[1738153323895,3.18685,3137.9,3137.6,0.818]
[1738153324056,3.18695,3137.8,3137.6,0.818]
[1738153324255,3.18685,3137.9,3137.6,0.818]
[1738153324655,3.18678,3138.0,3137.6,0.818]
[1738153328920,3.83789905,3138.1,3137.6,0.818]
[1738153328921,3.18685,3137.9,3137.6,0.818]
[1738153329115,3.22116013,3137.9,3137.6,0.818]
[1738153329322,7.02460905,3138.1,3137.6,0.818]
[1738153329478,3.18676,3138.0,3137.6,0.818]
[1738153329984,3.83789905,3138.1,3137.7,0.0075]
[1738153330378,3.83789905,3138.1,3137.7,3.19454]
[1738153332016,3.83789905,3138.1,3137.7,0.0075]
[1738153334404,3.83789905,3138.1,3137.7,3.19452]
[1738153334605,6.37297,3138.3,3137.9,0.0075]
[1738153335825,3.18646,3138.3,3137.9,0.0075]
[1738153336037,3.18633,3138.4,3137.9,3.19432]
[1738153336534,0.64878134,3138.3,3137.9,3.19432]
[1738153336898,3.18633,3138.4,3138.1,0.0075]
[1738153337122,3.18671,3138.1,3137.7,0.7619]
[1738153337329,3.18671,3138.1,3137.8,0.269]
[1738153337728,3.18648,3138.3,3137.9,0.7619]
[1738153337927,6.37298,3138.3,3137.9,0.7619]
[1738153338135,3.18648,3138.3,3137.9,0.7619]
[1738153338321,3.18658,3138.2,3137.9,0.7619]
[1738153340717,6.37301,3138.3,3138.0,0.0075]
[1738153340922,3.18648,3138.3,3138.0,0.0075]
[1738153341842,3.80829741,3138.4,3138.0,0.0075]
[1738153342214,3.80829741,3138.4,3138.0,0.430021]
[1738153342736,0.62193741,3138.4,3138.2,0.0075]
[1738153342920,4.82390469,3138.9,3138.7,0.8083]
[1738153343310,3.18562,3139.1,3138.7,0.8083]
[1738153343708,3.18562,3139.1,3138.8,0.0075]
[1738153344113,0.6372899,3139.0,3138.8,0.0075]
[1738153345548,3.18543,3139.3,3138.8,0.0075]
[1738153345848,3.18543,3139.3,3138.8,3.19339]
[1738153346020,6.37092,3139.3,3138.8,3.912162]
[1738153346655,3.18543,3139.3,3138.8,3.912162]
[1738153346857,0.63586356,3139.3,3139.1,0.7674]
[1738153347161,3.18514,3139.6,3139.2,0.269]
[1738153347333,3.18507,3139.7,3139.2,0.269]
[1738153347667,6.37055,3139.5,3139.2,0.269]
[1738153347836,3.18527,3139.5,3139.2,0.269]
[1738153348032,3.18527,3139.5,3139.2,0.691211]
[1738153348757,0.64077149,3139.4,3139.3,0.0075]
[1738153349258,3.18504,3139.7,3139.3,0.0075]
[1738153349762,0.64083523,3139.8,3139.5,0.0075]
[1738153350128,0.64083523,3139.8,3139.7,0.8241]
[1738153350456,3.18462,3140.1,3139.7,0.8241]
[1738153350660,0.03431013,3140.0,3139.4,6.00247]
[1738153350821,3.18481,3139.9,3139.8,0.269]
[1738153351656,3.18481,3139.9,3139.4,2.8172]
[1738153351657,0.64740038,3139.9,3139.4,0.8172]
[1738153351856,3.18509,3139.7,3139.5,0.269]
[1738153353164,0.7888,3139.8,3139.5,0.269]
[1738153353355,3.97373,3139.8,3139.5,0.269]
[1738153353758,3.83225038,3139.9,3139.5,0.269]
[1738153353960,3.83225038,3139.9,3139.6,0.7826]
[1738153355978,0.64740038,3139.9,3139.6,0.7826]
[1738153356183,0.64740038,3139.9,3139.7,0.0075]
[1738153356641,0.64740038,3139.9,3139.8,3.19241]
[1738153357850,0.64740038,3139.9,3139.8,3.94631]
[1738153361869,3.18443,3140.3,3139.9,0.0075]
[1738153362192,7.19202,3140.5,3139.9,3.19229]
[1738153362391,3.18425,3140.5,3140.1,0.0075]
[1738153363571,3.83375042,3140.5,3140.1,0.0075]
[1738153364053,3.83375042,3140.5,3140.0,0.71311]
[1738153364054,0.03431013,3140.4,3140.0,0.71311]
[1738153364255,3.18475,3140.0,3139.9,0.268]
[1738153364764,3.18461,3140.1,3139.9,0.268]
[1738153365930,3.18461,3140.1,3139.7,0.0075]
[1738153366110,3.18461,3140.1,3140.0,0.268]
[1738153366615,3.18461,3140.1,3139.7,0.31926]
[1738153366821,3.18461,3140.1,3139.8,0.268]
[1738153367187,0.03431013,3140.0,3139.8,0.268]
[1738153367687,3.18461,3140.1,3139.8,0.268]
[1738153368099,0.03431013,3140.2,3139.8,0.268]
[1738153368300,3.18453,3140.2,3139.8,1.405936]
[1738153368699,3.21884013,3140.2,3139.9,0.11494357]
[1738153369318,3.18464,3140.1,3139.9,0.11494357]
[1738153369526,3.21902013,3140.0,3139.9,0.11494357]
[1738153370437,0.03431013,3140.0,3139.9,0.11494357]
[1738153370635,3.21889013,3140.2,3139.9,0.11494357]
[1738153371638,0.03431013,3140.2,3139.9,0.11494357]
[1738153371844,3.18468,3140.1,3139.9,0.11494357]
[1738153372044,3.21902013,3140.0,3139.9,0.11494357]
[1738153373145,3.21902013,3140.0,3139.9,0.38294357]
[1738153374150,3.21902013,3140.0,3139.9,0.11494357]
[1738153374445,3.21902013,3140.0,3139.9,0.38294357]
[1738153374643,3.86288228,3140.0,3139.9,0.38294357]
[1738153379528,5.35963851,3140.0,3139.9,0.11494357]
[1738153379727,5.90963851,3140.0,3139.9,0.11494357]
[1738153379931,10.7335432,3140.0,3139.9,0.11494357]
[1738153380131,10.69923307,3140.0,3139.9,0.11494357]
[1738153381276,9.99447684,3140.0,3139.9,0.11494357]
[1738153381875,9.44447684,3140.0,3139.9,0.11494357]
[1738153384570,8.65247684,3140.0,3139.9,0.11494357]
[1738153393384,4.82390469,3140.0,3139.9,0.11494357]
[1738153393687,4.82390469,3140.0,3139.9,0.91274357]
[1738153393892,4.82390469,3140.0,3139.9,1.33001793]
[1738153394100,3.18438,3140.4,3140.0,0.0075]
[1738153394772,0.62641788,3140.3,3140.0,0.0075]
[1738153396060,0.62641788,3140.3,3140.1,0.818]
[1738153397462,3.18427,3140.5,3140.1,0.818]
[1738153397661,3.18427,3140.5,3140.2,0.401021]
[1738153397861,0.63448266,3140.4,3140.2,0.401021]
[1738153398593,0.63448266,3140.4,3140.0,0.0075]
[1738153398794,0.03431013,3140.3,3140.0,0.0075]
[1738153398998,3.18456,3140.2,3140.0,0.0075]
[1738153399701,0.03431013,3140.1,3139.9,0.93284357]
[1738153399914,3.18471,3140.0,3139.9,0.11494357]
[1738153400203,3.18471,3140.0,3139.9,0.38294357]
[1738153400565,3.21902013,3140.0,3139.9,0.11494357]
[1738153400921,4.25064813,3140.0,3139.9,0.11494357]
[1738153401563,9.07455282,3140.0,3139.9,0.11494357]
[1738153401781,9.04024269,3140.0,3139.9,0.11494357]
[1738153402231,9.80474269,3140.0,3139.9,0.11494357]
[1738153402516,12.80474269,3140.0,3139.9,0.11494357]
[1738153402662,12.80474269,3140.0,3139.9,3.57e-06]
[1738153402862,12.97077406,3140.0,3139.9,3.57e-06]
[1738153403090,13.52077406,3140.0,3139.9,3.57e-06]
[1738153403906,13.52827406,3140.0,3139.9,3.57e-06]
[1738153404203,13.52827406,3140.0,3138.3,3.3025]
[1738153404204,3.18603,3138.7,3138.3,3.3025]
[1738153404509,3.18623,3138.5,3138.4,0.268]
[1738153404685,4.00593,3138.5,3138.4,0.268]
[1738153404880,4.00593,3138.5,3137.3,6.39240504]
[1738153404881,0.8197,3138.5,3137.5,0.7795]
[1738153405108,0.8197,3138.5,3137.3,0.11868031]
[1738153405109,3.18735,3137.4,3137.3,0.11868031]
[1738153405769,3.94245,3137.4,3137.3,0.11868031]
[1738153406066,3.18735,3137.4,3137.3,0.11868031]
[1738153407981,3.85910913,3137.4,3137.3,0.11868031]
[1738153408798,7.66750913,3137.4,3137.3,0.11868031]
[1738153409004,8.28341827,3137.4,3137.3,0.11868031]
[1738153413026,13.10732296,3137.4,3137.3,0.11868031]
[1738153413321,13.82318504,3137.4,3137.3,3.1e-07]
[1738153414613,13.83068504,3137.4,3137.3,3.1e-07]
[1738153421155,0.8666,3137.2,3135.6,0.7959]
[1738153421312,3.18888,3135.9,3135.7,0.268]
[1738153421659,3.03431013,3135.8,3135.3,0.0032862]
[1738153421843,3.18938,3135.4,3135.3,0.0032862]
[1738153422151,3.18938,3135.4,3134.7,0.758]
[1738153422152,3.18999,3134.9,3134.7,0.758]
[1738153422674,3.18999,3134.9,3134.7,1.026]
[1738153423658,0.66903023,3135.0,3134.7,1.026]
[1738153423816,3.85885023,3135.0,3134.7,1.026]
[1738153424350,3.18989,3134.9,3134.7,1.026]
[1738153426559,0.66903023,3135.0,3134.7,1.026]
[1738153426761,3.85883023,3135.0,3134.7,1.026]
[1738153429257,7.04870023,3135.0,3134.7,1.026]
[1738153429455,3.1899,3134.9,3134.7,1.026]
[1738153430557,3.1903,3134.5,3133.8,0.7631]
[1738153430758,0.03431013,3134.4,3133.9,0.268]
[1738153430926,3.19017,3134.7,3134.1,0.7688]
[1738153431328,3.1903,3134.5,3134.1,0.7688]
[1738153432239,3.1903,3134.5,3134.2,0.268]
[1738153432427,3.1904,3134.4,3134.3,0.268]
[1738153432865,3.19015,3134.7,3134.3,0.268]
[1738153433105,3.19001,3134.8,3134.4,0.7688]
[1738153434063,3.19001,3134.8,3134.5,0.0075]
[1738153434268,3.8245401,3135.0,3134.5,0.0075]
[1738153434467,3.18995,3134.9,3134.6,1.0368]
[1738153434662,0.03431013,3134.9,3134.6,1.0368]
[1738153434907,3.19009,3134.7,3134.6,0.268]
[1738153435105,3.19037,3134.5,3134.3,0.7688]
[1738153435301,3.19037,3134.5,3134.4,0.268]
[1738153436793,3.1905,3134.3,3134.1,0.8114]
[1738153436996,3.1906,3134.2,3134.1,0.8114]
[1738153437191,3.19079,3134.1,3133.7,0.8189]
[1738153437405,3.19079,3134.1,3133.9,0.268]
[1738153437406,3.19082,3134.0,3133.9,0.268]
[1738153438506,3.19091,3133.9,3133.8,0.32634997]
[1738153438708,3.89346312,3133.9,3133.8,0.05834997]
[1738153438918,7.74287325,3133.9,3133.8,0.05834997]
[1738153439149,7.70856312,3133.9,3133.8,0.05834997]
[1738153439345,7.70856312,3133.9,3133.0,0.268]
[1738153439346,3.19172,3133.1,3133.0,0.268]
[1738153439522,3.19172,3133.1,3133.0,0.32636487]
[1738153439691,3.19172,3133.1,3133.0,0.05836487]
[1738153441433,4.23414701,3133.1,3133.0,0.05836487]
[1738153441591,7.98544701,3133.1,3133.0,4.87e-06]
[1738153441801,7.98544701,3133.1,3132.2,0.1609414]
[1738153441802,3.19254,3132.3,3132.2,0.1609414]
[1738153442340,3.22685013,3132.3,3132.2,0.1609414]
[1738153442749,3.19254,3132.3,3132.2,0.1609414]
[1738153442891,0.03431013,3132.4,3132.2,0.1609414]
[1738153443095,3.22681013,3132.4,3132.2,0.1609414]
[1738153443592,3.22676013,3132.4,3132.2,0.1609414]
[1738153443921,3.19254,3132.3,3132.2,0.1609414]
[1738153444316,3.22676013,3132.4,3132.2,0.1609414]
[1738153444893,6.6429317,3133.1,3132.3,0.7674]
[1738153445095,3.19196,3132.9,3132.3,0.7674]
[1738153445292,3.19196,3132.9,3132.3,1.18000614]
[1738153445493,8.01566469,3133.1,3132.4,0.0075]
[1738153445718,3.19176,3133.1,3132.4,0.0075]
[1738153445892,3.22607013,3133.1,3132.4,0.0075]
[1738153446095,3.22607013,3133.1,3132.4,35.0075]
[1738153446291,3.22607013,3133.1,3132.5,3.12998842]
[1738153446694,3.19144,3133.4,3132.6,3.19965]
[1738153446895,3.22575013,3133.4,3132.6,3.19965]
[1738153447235,0.64394531,3133.5,3132.9,0.0075]
[1738153447398,3.22556013,3133.6,3132.9,0.0075]
[1738153447599,0.03431013,3133.4,3132.9,0.0075]
[1738153449055,0.03431013,3133.4,3132.7,0.812]
[1738153449056,3.19155,3133.3,3132.7,0.812]
[1738153449267,3.19155,3133.3,3132.2,0.1609414]